Workbook

Sheet Fixpunkt
B1: Lösning med visual basic-script
B2: Iteration | C2: x-värde | D2: steg | E2: tolerans
B3: 0 | C3: 1 | D3: 2e-10 | E3: 1e-10
B9: Lösning utan visual basic-script
A10: konv? | B10: steg | C10: x-värde | D10: iteration | E10: tolerans | G10: Steg | H10: x-värde
A11: 0 | B11: 2e-10 | C11: 1 | D11: 0 | E11: 1e-27 | G11: =VLOOKUP(1,$A11:$D100,4) -> 87 | H11: =VLOOKUP(1,$A11:$D100,3) -> 0.7390851332
A12: =IF(ABS(B12)<E$11,1,0)+A11 -> 0 | B12: =COS(C11)-C11 -> -0.4596976941 | C12: =C11+B12 -> 0.5403023059 | D12: =D11+1 -> 1
A13: =IF(ABS(B13)<E$11,1,0)+A12 -> 0 | B13: =COS(C12)-C12 -> 0.31725091 | C13: =C12+B13 -> 0.8575532158 | D13: =D12+1 -> 2
A14: 0 | B14: =COS(C13)-C13 -> -0.2032634253 | C14: =C13+B14 -> 0.6542897905 | D14: 3
A15: 0 | B15: =COS(C14)-C14 -> 0.1391905682 | C15: =C14+B15 -> 0.7934803587 | D15: 4
A16: 0 | B16: =COS(C15)-C15 -> -0.09211158512 | C16: =C15+B16 -> 0.7013687736 | D16: 5
A17: 0 | B17: =COS(C16)-C16 -> 0.06259090928 | C17: =C16+B17 -> 0.7639596829 | D17: 6
A18: 0 | B18: =COS(C17)-C17 -> -0.04185725787 | C18: =C17+B18 -> 0.722102425 | D18: 7
A19: 0 | B19: =COS(C18)-C18 -> 0.02831533674 | C19: =C18+B19 -> 0.7504177618 | D19: 8
A20: 0 | B20: =COS(C19)-C19 -> -0.01901371934 | C20: =C19+B20 -> 0.7314040424 | D20: 9
A21: 0 | B21: =COS(C20)-C20 -> 0.01283331248 | C21: =C20+B21 -> 0.7442373549 | D21: 10
A22: 0 | B22: =COS(C21)-C21 -> -0.008632614464 | C22: =C21+B22 -> 0.7356047404 | D22: 11
A23: 0 | B23: =COS(C22)-C22 -> 0.005820346174 | C23: =C22+B23 -> 0.7414250866 | D23: 12
A24: 0 | B24: =COS(C23)-C23 -> -0.003918196097 | C24: =C23+B24 -> 0.7375068905 | D24: 13
A25: 0 | B25: =COS(C24)-C24 -> 0.002640445055 | C25: =C24+B25 -> 0.7401473356 | D25: 14
A26: 0 | B26: =COS(C25)-C25 -> -0.001778131446 | C26: =C25+B26 -> 0.7383692041 | D26: 15
A27: 0 | B27: =COS(C26)-C26 -> 0.00119799809 | C27: =C26+B27 -> 0.7395672022 | D27: 16
A28: 0 | B28: =COS(C27)-C27 -> -0.000806882338 | C28: =C27+B28 -> 0.7387603199 | D28: 17
A29: 0 | B29: =COS(C28)-C28 -> 0.0005435725227 | C29: =C28+B29 -> 0.7393038924 | D29: 18
A30: 0 | B30: =COS(C29)-C29 -> -0.0003661356816 | C30: =C29+B30 -> 0.7389377567 | D30: 19
A31: 0 | B31: =COS(C30)-C30 -> 0.0002466430561 | C31: =C30+B31 -> 0.7391843998 | D31: 20
A32: 0 | B32: =COS(C31)-C31 -> -0.0001661373441 | C32: =C31+B32 -> 0.7390182624 | D32: 21
A33: 0 | B33: =COS(C32)-C32 -> 0.0001119141023 | C33: =C32+B33 -> 0.7391301765 | D33: 22
A34: 0 | B34: =COS(C33)-C33 -> -7.538578275e-05 | C34: =C33+B34 -> 0.7390547907 | D34: 23
A35: 0 | B35: =COS(C34)-C34 -> 5.078117962e-05 | C35: =C34+B35 -> 0.7391055719 | D35: 24
A36: 0 | B36: =COS(C35)-C35 -> -3.420662759e-05 | C36: =C35+B36 -> 0.7390713653 | D36: 25
A37: 0 | B37: =COS(C36)-C36 -> 2.304208015e-05 | C37: =C36+B37 -> 0.7390944074 | D37: 26
A38: 0 | B38: =COS(C37)-C37 -> -1.55213841e-05 | C38: =C37+B38 -> 0.739078886 | D38: 27
A39: 0 | B39: =COS(C38)-C38 -> 1.04554084e-05 | C39: =C38+B39 -> 0.7390893414 | D39: 28
A40: 0 | B40: =COS(C39)-C39 -> -7.04288099e-06 | C40: =C39+B40 -> 0.7390822985 | D40: 29
A41: 0 | B41: =COS(C40)-C40 -> 4.74417293e-06 | C41: =C40+B41 -> 0.7390870427 | D41: 30
A42: 0 | B42: =COS(C41)-C41 -> -3.195730332e-06 | C42: =C41+B42 -> 0.739083847 | D42: 31
A43: 0 | B43: =COS(C42)-C42 -> 2.15268313e-06 | C43: =C42+B43 -> 0.7390859996 | D43: 32
A44: 0 | B44: =COS(C43)-C43 -> -1.450072917e-06 | C44: =C43+B44 -> 0.7390845496 | D44: 33
A45: 0 | B45: =COS(C44)-C44 -> 9.767867118e-07 | C45: =C44+B45 -> 0.7390855264 | D45: 34
A46: 0 | B46: =COS(C45)-C45 -> -6.579752103e-07 | C46: =C45+B46 -> 0.7390848684 | D46: 35
A47: 0 | B47: =COS(C46)-C46 -> 4.432200478e-07 | C47: =C46+B47 -> 0.7390853116 | D47: 36
A48: 0 | B48: =COS(C47)-C47 -> -2.985583416e-07 | C48: =C47+B48 -> 0.739085013 | D48: 37
A49: 0 | B49: =COS(C48)-C48 -> 2.011124968e-07 | C49: =C48+B49 -> 0.7390852142 | D49: 38
A50: 0 | B50: =COS(C49)-C49 -> -1.354717941e-07 | C50: =C49+B50 -> 0.7390850787 | D50: 39
A51: 0 | B51: =COS(C50)-C50 -> 9.125543143e-08 | C51: =C50+B51 -> 0.7390851699 | D51: 40
A52: 0 | B52: =COS(C51)-C51 -> -6.147075571e-08 | C52: =C51+B52 -> 0.7390851085 | D52: 41
A53: 0 | B53: =COS(C52)-C52 -> 4.14074407e-08 | C53: =C52+B53 -> 0.7390851499 | D53: 42
A54: 0 | B54: =COS(C53)-C53 -> -2.789255005e-08 | C54: =C53+B54 -> 0.739085122 | D54: 43
A55: 0 | B55: =COS(C54)-C54 -> 1.878875733e-08 | C55: =C54+B55 -> 0.7390851408 | D55: 44
A56: 0 | B56: =COS(C55)-C55 -> -1.265633287e-08 | C56: =C55+B56 -> 0.7390851281 | D56: 45
A57: 0 | B57: =COS(C56)-C56 -> 8.525458006e-09 | C57: =C56+B57 -> 0.7390851366 | D57: 46
A58: 0 | B58: =COS(C57)-C57 -> -5.742851084e-09 | C58: =C57+B58 -> 0.7390851309 | D58: 47
A59: 0 | B59: =COS(C58)-C58 -> 3.868453669e-09 | C59: =C58+B59 -> 0.7390851348 | D59: 48
A60: 0 | B60: =COS(C59)-C59 -> -2.605836991e-09 | C60: =C59+B60 -> 0.7390851322 | D60: 49
A61: 0 | B61: =COS(C60)-C60 -> 1.755323109e-09 | C61: =C60+B61 -> 0.7390851339 | D61: 50
A62: 0 | B62: =COS(C61)-C61 -> -1.182406728e-09 | C62: =C61+B62 -> 0.7390851327 | D62: 51
A63: 0 | B63: =COS(C62)-C62 -> 7.964834348e-10 | C63: =C62+B63 -> 0.7390851335 | D63: 52
A64: 0 | B64: =COS(C63)-C63 -> -5.365208278e-10 | C64: =C63+B64 -> 0.739085133 | D64: 53
A65: 0 | B65: =COS(C64)-C64 -> 3.614069044e-10 | C65: =C64+B65 -> 0.7390851334 | D65: 54
A66: 0 | B66: =COS(C65)-C65 -> -2.434480395e-10 | C66: =C65+B66 -> 0.7390851331 | D66: 55
A67: 0 | B67: =COS(C66)-C66 -> 1.639894887e-10 | C67: =C66+B67 -> 0.7390851333 | D67: 56
A68: 0 | B68: =COS(C67)-C67 -> -1.104653036e-10 | C68: =C67+B68 -> 0.7390851332 | D68: 57
A69: 0 | B69: =COS(C68)-C68 -> 7.441081085e-11 | C69: =C68+B69 -> 0.7390851332 | D69: 58
A70: 0 | B70: =COS(C69)-C69 -> -5.012401605e-11 | C70: =C69+B70 -> 0.7390851332 | D70: 59
A71: 0 | B71: =COS(C70)-C70 -> 3.376410262e-11 | C71: =C70+B71 -> 0.7390851332 | D71: 60
A72: 0 | B72: =COS(C71)-C71 -> -2.274391786e-11 | C72: =C71+B72 -> 0.7390851332 | D72: 61
A73: 0 | B73: =COS(C72)-C72 -> 1.532063365e-11 | C73: =C72+B73 -> 0.7390851332 | D73: 62
A74: 0 | B74: =COS(C73)-C73 -> -1.032018915e-11 | C74: =C73+B74 -> 0.7390851332 | D74: 63
A75: 0 | B75: =COS(C74)-C74 -> 6.951772491e-12 | C75: =C74+B75 -> 0.7390851332 | D75: 64
A76: 0 | B76: =COS(C75)-C75 -> -4.682809696e-12 | C76: =C75+B76 -> 0.7390851332 | D76: 65
A77: =IF(ABS(B77)<E$11,1,0)+A76 -> 0 | B77: =COS(C76)-C76 -> 3.154365658e-12 | C77: =C76+B77 -> 0.7390851332 | D77: =D76+1 -> 66
A78: 0 | B78: =COS(C77)-C77 -> -2.124744825e-12 | C78: =C77+B78 -> 0.7390851332 | D78: 67
A79: 0 | B79: =COS(C78)-C78 -> 1.431188501e-12 | C79: =C78+B79 -> 0.7390851332 | D79: 68
A80: 0 | B80: =COS(C79)-C79 -> -9.640066523e-13 | C80: =C79+B80 -> 0.7390851332 | D80: 69
A81: 0 | B81: =COS(C80)-C80 -> 6.493694471e-13 | C81: =C80+B81 -> 0.7390851332 | D81: 70
A82: 0 | B82: =COS(C81)-C81 -> -4.374278717e-13 | C82: =C81+B82 -> 0.7390851332 | D82: 71
A83: 0 | B83: =COS(C82)-C82 -> 2.946531907e-13 | C83: =C82+B83 -> 0.7390851332 | D83: 72
A84: 0 | B84: =COS(C83)-C83 -> -1.985078768e-13 | C84: =C83+B84 -> 0.7390851332 | D84: 73
A85: 0 | B85: =COS(C84)-C84 -> 1.337818745e-13 | C85: =C84+B85 -> 0.7390851332 | D85: 74
A86: 0 | B86: =COS(C85)-C85 -> -9.01501096e-14 | C86: =C85+B86 -> 0.7390851332 | D86: 75
A87: 0 | B87: =COS(C86)-C86 -> 6.072919945e-14 | C87: =C86+B87 -> 0.7390851332 | D87: 76
A88: 0 | B88: =COS(C87)-C87 -> -4.096722961e-14 | C88: =C87+B88 -> 0.7390851332 | D88: 77
A89: 0 | B89: =COS(C88)-C88 -> 2.764455331e-14 | C89: =C88+B89 -> 0.7390851332 | D89: 78
A90: 0 | B90: =COS(C89)-C89 -> -1.865174681e-14 | C90: =C89+B90 -> 0.7390851332 | D90: 79
A91: 0 | B91: =COS(C90)-C90 -> 1.254552018e-14 | C91: =C90+B91 -> 0.7390851332 | D91: 80
A92: 0 | B92: =COS(C91)-C91 -> -8.437694987e-15 | C92: =C91+B92 -> 0.7390851332 | D92: 81
A93: 0 | B93: =COS(C92)-C92 -> 5.662137426e-15 | C93: =C92+B93 -> 0.7390851332 | D93: 82
A94: 0 | B94: =COS(C93)-C93 -> -3.774758284e-15 | C94: =C93+B94 -> 0.7390851332 | D94: 83
A95: 0 | B95: =COS(C94)-C94 -> 2.553512957e-15 | C95: =C94+B95 -> 0.7390851332 | D95: 84
A96: 0 | B96: =COS(C95)-C95 -> -1.776356839e-15 | C96: =C95+B96 -> 0.7390851332 | D96: 85
A97: 0 | B97: =COS(C96)-C96 -> 1.221245327e-15 | C97: =C96+B97 -> 0.7390851332 | D97: 86
A98: 1 | B98: =COS(C97)-C97 -> 0 | C98: =C97+B98 -> 0.7390851332 | D98: 87
A99: 2 | B99: =COS(C98)-C98 -> 0 | C99: =C98+B99 -> 0.7390851332 | D99: 88
A100: 3 | B100: =COS(C99)-C99 -> 0 | C100: =C99+B100 -> 0.7390851332 | D100: 89
A101: =IF(ABS(B101)<E$11,1,0)+A100 -> 4 | B101: =COS(C100)-C100 -> 0 | C101: =C100+B101 -> 0.7390851332 | D101: =D100+1 -> 90
A102: 5 | B102: 0 | C102: 0.7390851332 | D102: 91
A103: 6 | B103: 0 | C103: 0.7390851332 | D103: 92
A104: 7 | B104: 0 | C104: 0.7390851332 | D104: 93
A105: 8 | B105: 0 | C105: 0.7390851332 | D105: 94
A106: 9 | B106: 0 | C106: 0.7390851332 | D106: 95
A107: 10 | B107: 0 | C107: 0.7390851332 | D107: 96
A108: 11 | B108: 0 | C108: 0.7390851332 | D108: 97
A109: 12 | B109: 0 | C109: 0.7390851332 | D109: 98
A110: 13 | B110: 0 | C110: 0.7390851332 | D110: 99
A111: 14 | B111: 0 | C111: 0.7390851332 | D111: 100
A112: 15 | B112: 0 | C112: 0.7390851332 | D112: 101
A113: 16 | B113: 0 | C113: 0.7390851332 | D113: 102
A114: 17 | B114: 0 | C114: 0.7390851332 | D114: 103
A115: 18 | B115: 0 | C115: 0.7390851332 | D115: 104
A116: 19 | B116: 0 | C116: 0.7390851332 | D116: 105
A117: 20 | B117: 0 | C117: 0.7390851332 | D117: 106
A118: 21 | B118: 0 | C118: 0.7390851332 | D118: 107
A119: 22 | B119: 0 | C119: 0.7390851332 | D119: 108
A120: 23 | B120: 0 | C120: 0.7390851332 | D120: 109
A121: 24 | B121: 0 | C121: 0.7390851332 | D121: 110
A122: 25 | B122: 0 | C122: 0.7390851332 | D122: 111
A123: 26 | B123: 0 | C123: 0.7390851332 | D123: 112
A124: 27 | B124: 0 | C124: 0.7390851332 | D124: 113
A125: 28 | B125: 0 | C125: 0.7390851332 | D125: 114
A126: 29 | B126: 0 | C126: 0.7390851332 | D126: 115
A127: 30 | B127: 0 | C127: 0.7390851332 | D127: 116
A128: 31 | B128: 0 | C128: 0.7390851332 | D128: 117
A129: 32 | B129: 0 | C129: 0.7390851332 | D129: 118
A130: 33 | B130: 0 | C130: 0.7390851332 | D130: 119
A131: 34 | B131: 0 | C131: 0.7390851332 | D131: 120
A132: 35 | B132: 0 | C132: 0.7390851332 | D132: 121
A133: 36 | B133: 0 | C133: 0.7390851332 | D133: 122
A134: 37 | B134: 0 | C134: 0.7390851332 | D134: 123
A135: 38 | B135: 0 | C135: 0.7390851332 | D135: 124
A136: 39 | B136: 0 | C136: 0.7390851332 | D136: 125
A137: 40 | B137: 0 | C137: 0.7390851332 | D137: 126
A138: 41 | B138: 0 | C138: 0.7390851332 | D138: 127
A139: 42 | B139: 0 | C139: 0.7390851332 | D139: 128
A140: 43 | B140: 0 | C140: 0.7390851332 | D140: 129
A141: 44 | B141: 0 | C141: 0.7390851332 | D141: 130
A142: 45 | B142: 0 | C142: 0.7390851332 | D142: 131
A143: 46 | B143: 0 | C143: 0.7390851332 | D143: 132
A144: 47 | B144: 0 | C144: 0.7390851332 | D144: 133
A145: 48 | B145: 0 | C145: 0.7390851332 | D145: 134
A146: 49 | B146: 0 | C146: 0.7390851332 | D146: 135
A147: 50 | B147: 0 | C147: 0.7390851332 | D147: 136
A148: 51 | B148: 0 | C148: 0.7390851332 | D148: 137
A149: 52 | B149: 0 | C149: 0.7390851332 | D149: 138
A150: 53 | B150: 0 | C150: 0.7390851332 | D150: 139
A151: 54 | B151: 0 | C151: 0.7390851332 | D151: 140
A152: 55 | B152: 0 | C152: 0.7390851332 | D152: 141
A153: 56 | B153: 0 | C153: 0.7390851332 | D153: 142
A154: 57 | B154: 0 | C154: 0.7390851332 | D154: 143
A155: 58 | B155: 0 | C155: 0.7390851332 | D155: 144
A156: 59 | B156: 0 | C156: 0.7390851332 | D156: 145
A157: 60 | B157: 0 | C157: 0.7390851332 | D157: 146
A158: 61 | B158: 0 | C158: 0.7390851332 | D158: 147
A159: 62 | B159: 0 | C159: 0.7390851332 | D159: 148
A160: 63 | B160: 0 | C160: 0.7390851332 | D160: 149
A161: 64 | B161: 0 | C161: 0.7390851332 | D161: 150
A162: 65 | B162: 0 | C162: 0.7390851332 | D162: 151
A163: 66 | B163: 0 | C163: 0.7390851332 | D163: 152
A164: 67 | B164: 0 | C164: 0.7390851332 | D164: 153
A165: =IF(ABS(B165)<E$11,1,0)+A164 -> 68 | B165: =COS(C164)-C164 -> 0 | C165: =C164+B165 -> 0.7390851332 | D165: =D164+1 -> 154
A166: 69 | B166: 0 | C166: 0.7390851332 | D166: 155
A167: 70 | B167: 0 | C167: 0.7390851332 | D167: 156
A168: 71 | B168: 0 | C168: 0.7390851332 | D168: 157
A169: 72 | B169: 0 | C169: 0.7390851332 | D169: 158
A170: 73 | B170: 0 | C170: 0.7390851332 | D170: 159
A171: 74 | B171: 0 | C171: 0.7390851332 | D171: 160
A172: 75 | B172: 0 | C172: 0.7390851332 | D172: 161
A173: 76 | B173: 0 | C173: 0.7390851332 | D173: 162
A174: 77 | B174: 0 | C174: 0.7390851332 | D174: 163
A175: 78 | B175: 0 | C175: 0.7390851332 | D175: 164
A176: 79 | B176: 0 | C176: 0.7390851332 | D176: 165
A177: 80 | B177: 0 | C177: 0.7390851332 | D177: 166
A178: 81 | B178: 0 | C178: 0.7390851332 | D178: 167
A179: 82 | B179: 0 | C179: 0.7390851332 | D179: 168
A180: 83 | B180: 0 | C180: 0.7390851332 | D180: 169
A181: 84 | B181: 0 | C181: 0.7390851332 | D181: 170
A182: 85 | B182: 0 | C182: 0.7390851332 | D182: 171
A183: 86 | B183: 0 | C183: 0.7390851332 | D183: 172
A184: 87 | B184: 0 | C184: 0.7390851332 | D184: 173
A185: 88 | B185: 0 | C185: 0.7390851332 | D185: 174
A186: 89 | B186: 0 | C186: 0.7390851332 | D186: 175
A187: 90 | B187: 0 | C187: 0.7390851332 | D187: 176
A188: 91 | B188: 0 | C188: 0.7390851332 | D188: 177
A189: 92 | B189: 0 | C189: 0.7390851332 | D189: 178
A190: 93 | B190: 0 | C190: 0.7390851332 | D190: 179
A191: 94 | B191: 0 | C191: 0.7390851332 | D191: 180
A192: 95 | B192: 0 | C192: 0.7390851332 | D192: 181
A193: 96 | B193: 0 | C193: 0.7390851332 | D193: 182
A194: 97 | B194: 0 | C194: 0.7390851332 | D194: 183
A195: 98 | B195: 0 | C195: 0.7390851332 | D195: 184
A196: 99 | B196: 0 | C196: 0.7390851332 | D196: 185
A197: 100 | B197: 0 | C197: 0.7390851332 | D197: 186
A198: 101 | B198: 0 | C198: 0.7390851332 | D198: 187
A199: 102 | B199: 0 | C199: 0.7390851332 | D199: 188
A200: 103 | B200: 0 | C200: 0.7390851332 | D200: 189
A201: 104 | B201: 0 | C201: 0.7390851332 | D201: 190
A202: 105 | B202: 0 | C202: 0.7390851332 | D202: 191
A203: 106 | B203: 0 | C203: 0.7390851332 | D203: 192
A204: 107 | B204: 0 | C204: 0.7390851332 | D204: 193
A205: 108 | B205: 0 | C205: 0.7390851332 | D205: 194
... 406 more rows
